[Event "XVI Memorial Lezcano Montalvo 2024"]
[Site "Gran Canaria"]
[Date "2024.03.26"]
[Round "4.18"]
[White "Hernandez Leon, Sergio"]
[Black "Rivero Tacoronte, Gabriel"]
[Result "1-0"]
[ECO "A06"]
[WhiteElo "2172"]
[BlackElo "1831"]
[Annotator "RC"]
[PlyCount "127"]
[EventDate "2024.03.23"]
[EventType "swiss"]
[EventCountry "ESP"]
[SourceTitle "playchess.com"]
[Source "ChessBase"]
[SourceQuality "1"]
[TimeControl "5400+30"]

1. Nf3 {[%emt 0:00:03]} d5 {[%emt 0:00:12]} 2. b3 {[%emt 0:00:05]} c5 {[%emt 0:00:15]} 3. e3 {[%emt 0:00:12]} a6 {[%emt 0:00:08]} 4. Bb2 {[%emt 0:00:11]} Nc6 {[%emt 0:00:14]} 5. d4 {[%emt 0:01:25]} cxd4 {[%emt 0:03:41]} 6. exd4 {[%emt 0:01:07]} Bg4 {[%emt 0:02:58]} 7. Be2 {[%emt 0:01:56]} Nf6 {[%emt 0:00:42]} 8. O-O {[%emt 0:00:30]} e6 {[%emt 0:00:35]} 9. c4 {[%emt 0:00:48]} Be7 {[%emt 0:02:01]} 10. c5 {[%emt 0:08:49]} O-O {[%emt 0:03:26]} 11. Nc3 {[%emt 0:01:06]} Qc7 {[%emt 0:01:36]} 12. Na4 {[%emt 0:00:54]} Nd7 {[%emt 0:12:00]} 13. Rc1 {[%emt 0:02:18]} Bf6 {[%emt 0:02:29]} 14. Re1 {[%emt 0:00:56]} Bxf3 {[%emt 0:05:33]} 15. Bxf3 {[%emt 0:00:14]} Rfe8 {[%emt 0:07:18]} 16. Bg4 {[%emt 0:12:16]} Rad8 {[%emt 0:02:02]} 17. a3 {[%emt 0:04:41]} Qf4 {[%emt 0:14:01]} 18. g3 {[%emt 0:00:52]} Qh6 {[%emt 0:00:02]} 19. f4 {[%emt 0:00:59]} g6 {[%emt 0:00:09]} 20. Qd3 {[%emt 0:00:40]} Qg7 {[%emt 0:00:48]} 21. Rcd1 {[%emt 0:02:30]} Ne7 {[%emt 0:02:05]} 22. Bc3 {[%emt 0:02:28]} Nf5 {[%emt 0:05:41]} 23. Kg2 {[%emt 0:06:43]} Nb8 {[%emt 0:05:38]} 24. Bxf5 {[%emt 0:06:54]} gxf5 {[%emt 0:02:13]} 25. Ba5 {[%emt 0:01:17]} Rc8 {[%emt 0:00:35]} 26. Nb6 {[%emt 0:03:44]} Rcd8 {[%emt 0:00:53]} 27. Bc3 {[%emt 0:00:44]} Nd7 {[%emt 0:09:41]} 28. Nxd7 {[%emt 0:03:35]} Rxd7 {[%emt 0:00:05]} 29. Qxf5 {[%emt 0:00:08]} exf5 {[%emt 0:05:41]} 30. Rxe8+ {[%emt 0:00:05]} Qf8 {[%emt 0:00:06]} 31. Rde1 {[%emt 0:02:57]} Re7 {[%emt 0:00:17]} 32. R1xe7 {[%emt 0:02:16]} Bxe7 {[%emt 0:00:06]} 33. Rxf8+ {[%emt 0:00:04]} Kxf8 {[%emt 0:00:05]} 34. Kf3 {[%emt 0:00:21]} h5 {[%emt 0:00:17]} 35. Ba5 {[%emt 0:02:47]} Ke8 {[%emt 0:00:49]} 36. a4 {[%emt 0:00:39]} Kd7 {[%emt 0:00:15]} 37. Be1 {[%emt 0:00:22]} Bf6 {[%emt 0:08:18]} 38. Ke3 {[%emt 0:01:16]} Bd8 {[%emt 0:01:33]} 39. b4 {[%emt 0:02:00]} Kc6 {[%emt 0:00:15]} 40. Kf3 {[%emt 0:00:59]} Kd7 {[%emt 0:00:23]} 41. b5 {[%emt 0:02:57]} axb5 {[%emt 0:00:06]} 42. axb5 {[%emt 0:00:04]} Bf6 {[%emt 0:01:24]} 43. Bf2 {[%emt 0:00:46]} Bd8 {[%emt 0:00:43]} 44. h3 {[%emt 0:01:54]} Ke6 {[%emt 0:00:06]} 45. g4 {[%emt 0:03:41]} fxg4+ {[%emt 0:00:13]} 46. hxg4 {[%emt 0:00:02]} hxg4+ {[%emt 0:00:12]} 47. Kxg4 {[%emt 0:00:02]} f5+ {[%emt 0:00:13]} 48. Kh5 {[%emt 0:00:32]} Bc7 {[%emt 0:01:09]} 49. Kg5 {[%emt 0:02:04]} Bd8+ {[%emt 0:03:42]} 50. Kg6 {[%emt 0:00:31]} Bf6 {[%emt 0:00:14]} 51. b6 {[%emt 0:02:04]} Bd8 {[%emt 0:01:27]} 52. Be1 {[%emt 0:04:16]} Be7 {[%emt 0:00:12]} 53. Bc3 {[%emt 0:00:43]} Bf8 {[%emt 0:00:43]} 54. Bb4 {[%emt 0:03:14]} Be7 {[%emt 0:00:08]} 55. Kh7 {[%emt 0:01:22]} Bd8 {[%emt 0:01:16]} 56. Kg8 {[%emt 0:00:17]} Be7 {[%emt 0:00:49]} 57. Ba3 {[%emt 0:00:38]} Kd7 {[%emt 0:00:45]} 58. c6+ {[%emt 0:01:17]} Kxc6 {[%emt 0:00:24]} 59. Bxe7 {[%emt 0:00:05]} Kxb6 {[%emt 0:00:04]} 60. Kf7 {[%emt 0:00:11]} Kb5 {[%emt 0:00:26]} 61. Ke6 {[%emt 0:00:11]} Kc4 {[%emt 0:00:07]} 62. Ke5 {[%emt 0:00:08]} b6 {[%emt 0:00:32]} 63. Bd6 {[%emt 0:00:20]} b5 {[%emt 0:00:07]} 64. Bc5 {[%emt 0:00:18]} 1-0

[Event "XVI Memorial Lezcano Montalvo 2024"]
[Site "Gran Canaria"]
[Date "2024.03.26"]
[Round "4.19"]
[White "Guerrero Orihuela, Jose Luis"]
[Black "Marrero Cardenes, Agustin"]
[Result "1/2-1/2"]
[ECO "E30"]
[WhiteElo "1948"]
[BlackElo "2093"]
[Annotator "NA RC"]
[PlyCount "37"]
[EventDate "2024.03.23"]
[EventType "swiss"]
[EventCountry "ESP"]
[SourceTitle "playchess.com"]
[Source "ChessBase"]
[SourceQuality "1"]
[TimeControl "5400+30"]

1. d4 {[%emt 0:00:03]} Nf6 {[%emt 0:00:08]} 2. c4 {[%emt 0:00:09]} e6 {[%emt 0:00:07]} 3. Nc3 {[%emt 0:00:04]} Bb4 {[%emt 0:01:11]} 4. Bg5 {[%emt 0:02:23]} c5 {[%emt 0:01:57]} 5. d5 {[%emt 0:00:13]} exd5 {[%emt 0:00:52]} 6. cxd5 {[%emt 0:00:07]} d6 {[%emt 0:00:07]} 7. e3 {[%emt 0:03:31]} O-O {[%emt 0:04:45]} 8. Bd3 {[%emt 0:01:40]} Nbd7 {[%emt 0:03:32]} 9. Nge2 {[%emt 0:01:22]} Ne5 {[%emt 0:03:31]} 10. Bc2 {[%emt 0:02:02]} Bg4 {[%emt 0:03:23]} 11. O-O {[%emt 0:05:28]} Bxc3 {[%emt 0:01:20]} 12. bxc3 {[%emt 0:00:09]} h6 $11 {[%emt 0:02:35]} 13. Bxf6 {[%emt 0:06:36]} Qxf6 {[%emt 0:00:11]} 14. Qd2 {[%emt 0:11:15]} Bf3 {[%emt 0:09:53]} 15. Ng3 {[%emt 0:05:46]} h5 {[%emt 0:03:44]} 16. Bd1 {[%emt 0:06:49]} h4 {[%emt 0:01:03]} 17. gxf3 {[%emt 0:02:35]} hxg3 {[%emt 0:03:58]} 18. fxg3 {[%emt 0:03:48]} Nc4 {[%emt 0:05:14]} 19. Qd3 {[%emt 0:46:00]} 1/2-1/2

[Event "XVI Memorial Lezcano Montalvo 2024"]
[Site "Gran Canaria"]
[Date "2024.03.26"]
[Round "4.20"]
[White "Perez Bolanos, David"]
[Black "Garcia Rodriguez, Adriana"]
[Result "1-0"]
[ECO "A28"]
[WhiteElo "2053"]
[BlackElo "1854"]
[Annotator "RC"]
[PlyCount "95"]
[EventDate "2024.03.23"]
[EventType "swiss"]
[EventCountry "ESP"]
[SourceTitle "playchess.com"]
[Source "ChessBase"]
[SourceQuality "1"]
[TimeControl "5400+30"]

1. c4 {[%emt 0:00:49]} e5 {[%emt 0:00:06]} 2. Nc3 {[%emt 0:00:09]} Nc6 {[%emt 0:00:04]} 3. Nf3 {[%emt 0:00:10]} Nf6 {[%emt 0:00:57]} 4. e4 {[%emt 0:00:07]} Bb4 {[%emt 0:00:05]} 5. d3 {[%emt 0:00:08]} O-O {[%emt 0:00:22]} 6. a3 {[%emt 0:00:07]} Bxc3+ {[%emt 0:01:12]} 7. bxc3 {[%emt 0:00:10]} d6 {[%emt 0:00:03]} 8. g3 {[%emt 0:00:17]} Bg4 {[%emt 0:00:08]} 9. Bg2 {[%emt 0:00:21]} h6 {[%emt 0:00:16]} 10. h3 {[%emt 0:00:30]} Be6 {[%emt 0:00:32]} 11. O-O {[%emt 0:01:44]} Ne7 {[%emt 0:05:13]} 12. Nh4 {[%emt 0:08:11]} c6 {[%emt 0:03:28]} 13. f4 {[%emt 0:02:52]} exf4 {[%emt 0:13:47]} 14. gxf4 {[%emt 0:01:21]} Ng6 {[%emt 0:00:43]} 15. Nf3 {[%emt 0:07:23]} Ne7 {[%emt 0:06:39]} 16. f5 {[%emt 0:03:19]} Bd7 {[%emt 0:00:53]} 17. Qe1 {[%emt 0:04:29]} Kh7 {[%emt 0:04:24]} 18. Nh2 {[%emt 0:13:59]} Re8 {[%emt 0:06:30]} 19. Ng4 {[%emt 0:02:28]} Nxg4 {[%emt 0:13:46]} 20. hxg4 {[%emt 0:00:09]} Ng8 {[%emt 0:00:16]} 21. Qg3 {[%emt 0:02:34]} Qf6 {[%emt 0:00:30]} 22. d4 {[%emt 0:00:50]} c5 {[%emt 0:03:58]} 23. g5 {[%emt 0:02:31]} Qe7 {[%emt 0:00:17]} 24. Bf4 {[%emt 0:02:10]} cxd4 {[%emt 0:01:05]} 25. cxd4 {[%emt 0:00:12]} Rac8 {[%emt 0:00:28]} 26. gxh6 {[%emt 0:00:30]} Nxh6 {[%emt 0:00:13]} 27. Bxd6 {[%emt 0:00:20]} Qd8 {[%emt 0:00:16]} 28. c5 {[%emt 0:00:56]} b6 {[%emt 0:00:15]} 29. Rf4 {[%emt 0:02:33]} bxc5 {[%emt 0:00:22]} 30. dxc5 {[%emt 0:01:12]} Qf6 {[%emt 0:02:50]} 31. Raf1 {[%emt 0:04:01]} Bb5 {[%emt 0:01:29]} 32. R1f2 {[%emt 0:01:06]} Rcd8 {[%emt 0:01:00]} 33. Rh4 {[%emt 0:00:41]} Kg8 {[%emt 0:02:55]} 34. e5 {[%emt 0:01:09]} Nxf5 {[%emt 0:00:33]} 35. exf6 {[%emt 0:00:11]} Nxg3 36. Bxg3 {[%emt 0:00:06]} Rd3 {[%emt 0:00:47]} 37. Bd6 {[%emt 0:01:03]} Rxa3 {[%emt 0:00:20]} 38. Rg4 {[%emt 0:00:14]} g6 {[%emt 0:00:17]} 39. Bd5 {[%emt 0:00:36]} Ra1+ {[%emt 0:00:44]} 40. Kh2 {[%emt 0:00:33]} Bd3 {[%emt 0:02:45]} 41. c6 {[%emt 0:01:12]} Ra5 {[%emt 0:00:42]} 42. Rd4 {[%emt 0:00:48]} Ba6 {[%emt 0:01:08]} 43. Rg2 {[%emt 0:00:35]} Rxd5 {[%emt 0:01:32]} 44. Rxd5 {[%emt 0:00:33]} Re6 {[%emt 0:00:02]} 45. Rf2 {[%emt 0:00:18]} Bc8 {[%emt 0:00:16]} 46. c7 {[%emt 0:00:19]} Kh7 {[%emt 0:00:30]} 47. Bf8 {[%emt 0:00:36]} Rc6 {[%emt 0:00:17]} 48. Rd8 {[%emt 0:00:28]} 1-0

[Event "XVI Memorial Lezcano Montalvo 2024"]
[Site "Gran Canaria"]
[Date "2024.03.26"]
[Round "4.21"]
[White "de Leon Navarro, Claudio"]
[Black "Perez Bolanos, Joel"]
[Result "1/2-1/2"]
[ECO "D00"]
[WhiteElo "1931"]
[BlackElo "2046"]
[Annotator "RC"]
[PlyCount "44"]
[EventDate "2024.03.23"]
[EventType "swiss"]
[EventCountry "ESP"]
[SourceTitle "playchess.com"]
[Source "ChessBase"]
[SourceQuality "1"]
[TimeControl "5400+30"]

1. d4 {[%emt 0:01:43]} Nf6 {[%emt 0:00:08]} 2. Bf4 {[%emt 0:00:30]} d5 {[%emt 0:00:58]} 3. e3 {[%emt 0:00:49]} c5 {[%emt 0:01:24]} 4. dxc5 {[%emt 0:02:45]} Qa5+ {[%emt 0:04:27]} 5. Nd2 {[%emt 0:00:43]} Nc6 {[%emt 0:01:04]} 6. Ngf3 {[%emt 0:00:35]} Bg4 {[%emt 0:10:14]} 7. Be2 {[%emt 0:08:40]} e6 {[%emt 0:01:05]} 8. a3 {[%emt 0:01:25]} Qxc5 {[%emt 0:00:15]} 9. O-O {[%emt 0:08:20]} Be7 {[%emt 0:01:11]} 10. b4 {[%emt 0:08:00]} Qb6 {[%emt 0:00:08]} 11. c4 {[%emt 0:00:30]} O-O {[%emt 0:01:12]} 12. h3 {[%emt 0:02:17]} Bh5 {[%emt 0:01:16]} 13. Ne5 {[%emt 0:08:09]} Nxe5 {[%emt 0:02:45]} 14. Bxe5 {[%emt 0:02:56]} Bxe2 {[%emt 0:00:15]} 15. Qxe2 {[%emt 0:00:12]} dxc4 {[%emt 0:00:26]} 16. Bd4 {[%emt 0:07:20]} Qd6 {[%emt 0:05:10]} 17. Nxc4 {[%emt 0:07:03]} Qa6 {[%emt 0:00:24]} 18. Qd3 {[%emt 0:01:18]} Rac8 {[%emt 0:05:48]} 19. Ne5 {[%emt 0:04:25]} Qa4 {[%emt 0:06:16]} 20. Qd1 {[%emt 0:07:29]} Qb5 {[%emt 0:05:40]} 21. Qd3 {[%emt 0:01:19]} Qa4 {[%emt 0:02:10]} 22. Qd1 {[%emt 0:00:33]} Qb5 {[%emt 0:00:21]} 1/2-1/2

[Event "XVI Memorial Lezcano Montalvo 2024"]
[Site "Gran Canaria"]
[Date "2024.03.26"]
[Round "4.22"]
[White "Broeder, Hans-Gert"]
[Black "Mendez Acosta, Alexander Jesus"]
[Result "0-1"]
[ECO "B22"]
[WhiteElo "1860"]
[BlackElo "2025"]
[Annotator "RC"]
[PlyCount "44"]
[EventDate "2024.03.23"]
[EventType "swiss"]
[EventCountry "ESP"]
[SourceTitle "playchess.com"]
[Source "ChessBase"]
[SourceQuality "1"]
[TimeControl "5400+30"]

1. e4 {[%emt 0:02:50]} c5 {[%emt 0:00:52]} 2. c3 {[%emt 0:00:11]} Nf6 {[%emt 0:00:30]} 3. d3 {[%emt 0:00:07]} Nc6 {[%emt 0:01:04]} 4. f4 {[%emt 0:00:17]} d6 {[%emt 0:00:12]} 5. Nf3 {[%emt 0:00:17]} g6 {[%emt 0:01:06]} 6. Be3 {[%emt 0:06:19]} Bg7 {[%emt 0:00:59]} 7. Nbd2 {[%emt 0:02:01]} O-O {[%emt 0:04:11]} 8. Be2 {[%emt 0:04:14]} b5 {[%emt 0:02:42]} 9. d4 {[%emt 0:02:50]} b4 {[%emt 0:03:41]} 10. Qa4 {[%emt 0:06:48]} Bd7 {[%emt 0:13:29]} 11. Bb5 {[%emt 0:02:28]} bxc3 {[%emt 0:07:12]} 12. bxc3 {[%emt 0:00:38]} Qc7 {[%emt 0:15:28]} 13. dxc5 {[%emt 0:06:42]} a6 {[%emt 0:02:28]} 14. cxd6 {[%emt 0:06:08]} axb5 {[%emt 0:05:28]} 15. Qxa8 {[%emt 0:01:54]} Qxd6 {[%emt 0:00:08]} 16. e5 {[%emt 0:04:06]} Qd3 {[%emt 0:00:19]} 17. Qxf8+ {[%emt 0:00:38]} Bxf8 {[%emt 0:01:47]} 18. Bd4 {[%emt 0:05:56]} Nd5 {[%emt 0:03:17]} 19. g3 {[%emt 0:00:52]} Nxd4 {[%emt 0:35:07]} 20. Nxd4 {[%emt 0:03:46]} Nxc3 {[%emt 0:00:00]} 21. N2b3 {[%emt 0:01:09]} Qe3+ {[%emt 0:00:00]} 22. Kf1 {[%emt 0:00:18]} Bh3# {[%emt 0:01:30]} 0-1

[Event "XVI Memorial Lezcano Montalvo 2024"]
[Site "Gran Canaria"]
[Date "2024.03.26"]
[Round "4.23"]
[White "Basualdo De Ornelas, Jorge"]
[Black "Bergero, Simone"]
[Result "0-1"]
[ECO "B22"]
[WhiteElo "1792"]
[BlackElo "2022"]
[Annotator "RC"]
[PlyCount "70"]
[EventDate "2024.03.23"]
[EventType "swiss"]
[EventCountry "ESP"]
[SourceTitle "playchess.com"]
[Source "ChessBase"]
[SourceQuality "1"]
[TimeControl "5400+30"]

1. e4 {[%emt 0:00:01]} c5 {[%emt 0:00:15]} 2. d4 {[%emt 0:00:06]} cxd4 {[%emt 0:00:04]} 3. c3 {[%emt 0:00:04]} Nf6 {[%emt 0:00:09]} 4. e5 {[%emt 0:00:18]} Nd5 {[%emt 0:00:04]} 5. Qxd4 {[%emt 0:04:56]} e6 {[%emt 0:01:09]} 6. Nf3 {[%emt 0:01:43]} Nc6 {[%emt 0:01:04]} 7. Qg4 {[%emt 0:00:16]} f5 {[%emt 0:12:04]} 8. Qg3 {[%emt 0:03:51]} Qc7 {[%emt 0:06:11]} 9. Bb5 {[%emt 0:06:50]} d6 {[%emt 0:13:07]} 10. Bxc6+ {[%emt 0:00:20]} bxc6 {[%emt 0:00:33]} 11. O-O {[%emt 0:02:38]} dxe5 {[%emt 0:02:19]} 12. Nxe5 {[%emt 0:09:54]} Bd6 {[%emt 0:00:42]} 13. f4 {[%emt 0:00:12]} O-O {[%emt 0:00:18]} 14. Na3 {[%emt 0:02:05]} Ba6 {[%emt 0:04:31]} 15. Re1 {[%emt 0:03:50]} Rad8 {[%emt 0:09:48]} 16. Kh1 {[%emt 0:02:52]} Nf6 {[%emt 0:06:10]} 17. Be3 {[%emt 0:07:11]} Ne4 {[%emt 0:02:22]} 18. Qf3 {[%emt 0:00:23]} Bxe5 {[%emt 0:05:27]} 19. fxe5 {[%emt 0:00:05]} Qxe5 {[%emt 0:01:19]} 20. Nc2 {[%emt 0:07:30]} c5 {[%emt 0:02:18]} 21. Rad1 {[%emt 0:04:43]} Rxd1 {[%emt 0:06:34]} 22. Qxd1 {[%emt 0:00:12]} Qc7 {[%emt 0:01:43]} 23. Bg1 {[%emt 0:02:21]} Rd8 {[%emt 0:02:36]} 24. Qh5 {[%emt 0:00:30]} g6 {[%emt 0:02:34]} 25. Qh3 {[%emt 0:00:55]} Bb7 {[%emt 0:00:39]} 26. b4 {[%emt 0:04:59]} Rd2 {[%emt 0:02:49]} 27. Ne3 {[%emt 0:00:48]} Ng5 {[%emt 0:03:52]} 28. Qh6 {[%emt 0:00:57]} f4 {[%emt 0:00:47]} 29. Rf1 {[%emt 0:02:47]} f3 {[%emt 0:02:08]} 30. Bf2 {[%emt 0:05:32]} fxg2+ {[%emt 0:00:19]} 31. Nxg2 {[%emt 0:00:24]} Qf4 {[%emt 0:00:05]} 32. h4 {[%emt 0:10:35]} Bxg2+ {[%emt 0:00:06]} 33. Kxg2 {[%emt 0:01:11]} Qg4+ {[%emt 0:00:02]} 34. Kh1 {[%emt 0:00:36]} Qh3+ {[%emt 0:00:03]} 35. Kg1 {[%emt 0:00:19]} Nf3# {[%emt 0:00:34]} 0-1

[Event "XVI Memorial Lezcano Montalvo 2024"]
[Site "Gran Canaria"]
[Date "2024.03.26"]
[Round "4.24"]
[White "Cruz Pino, Adrian"]
[Black "Rivero Reyes, Alejandro"]
[Result "1-0"]
[ECO "E61"]
[WhiteElo "2015"]
[BlackElo "1799"]
[Annotator "RC"]
[PlyCount "151"]
[EventDate "2024.03.23"]
[EventType "swiss"]
[EventCountry "ESP"]
[SourceTitle "playchess.com"]
[Source "ChessBase"]
[SourceQuality "1"]
[TimeControl "5400+30"]

1. c4 {[%emt 0:00:03]} Nf6 {[%emt 0:00:09]} 2. Nf3 {[%emt 0:00:07]} b6 {[%emt 0:02:08]} 3. e3 {[%emt 0:00:19]} Bb7 {[%emt 0:00:25]} 4. b3 {[%emt 0:00:08]} g6 {[%emt 0:01:26]} 5. Bb2 {[%emt 0:00:04]} Bg7 {[%emt 0:00:35]} 6. Be2 {[%emt 0:00:14]} d6 {[%emt 0:05:05]} 7. d4 {[%emt 0:01:18]} Nbd7 {[%emt 0:02:05]} 8. O-O {[%emt 0:00:29]} O-O {[%emt 0:00:48]} 9. Nc3 {[%emt 0:00:16]} e6 {[%emt 0:10:55]} 10. Qc2 {[%emt 0:00:21]} c5 {[%emt 0:07:27]} 11. Rfd1 {[%emt 0:02:01]} a6 {[%emt 0:07:23]} 12. dxc5 {[%emt 0:03:35]} Nxc5 {[%emt 0:02:43]} 13. Rac1 {[%emt 0:19:31]} Qc7 {[%emt 0:18:30]} 14. Qb1 {[%emt 0:00:13]} Rfd8 {[%emt 0:09:10]} 15. Qa1 {[%emt 0:00:22]} Qe7 {[%emt 0:01:50]} 16. Nd2 {[%emt 0:05:18]} d5 {[%emt 0:05:32]} 17. b4 {[%emt 0:05:10]} Nce4 {[%emt 0:02:03]} 18. Ncxe4 {[%emt 0:04:41]} dxe4 {[%emt 0:00:12]} 19. a3 {[%emt 0:04:48]} Rd7 {[%emt 0:03:40]} 20. Nb3 {[%emt 0:02:09]} Rad8 {[%emt 0:01:16]} 21. Rxd7 {[%emt 0:00:08]} Rxd7 {[%emt 0:00:19]} 22. Be5 {[%emt 0:06:35]} Ne8 {[%emt 0:04:08]} 23. Bxg7 {[%emt 0:00:31]} Nxg7 {[%emt 0:00:02]} 24. Qc3 {[%emt 0:01:06]} Nf5 {[%emt 0:01:52]} 25. c5 {[%emt 0:02:17]} Rc7 {[%emt 0:03:08]} 26. Qe5 {[%emt 0:08:33]} f6 {[%emt 0:04:50]} 27. Qb2 {[%emt 0:00:17]} b5 {[%emt 0:06:19]} 28. Qc2 {[%emt 0:02:47]} Bd5 {[%emt 0:00:00]} 29. Nd2 {[%emt 0:00:19]} e5 {[%emt 0:00:00]} 30. Nxe4 {[%emt 0:00:54]} Qe6 {[%emt 0:00:00]} 31. Ng3 {[%emt 0:02:32]} Ne7 {[%emt 0:00:55]} 32. Qb2 {[%emt 0:02:09]} e4 {[%emt 0:00:46]} 33. Rd1 {[%emt 0:00:43]} Nc6 {[%emt 0:00:25]} 34. h3 {[%emt 0:00:21]} Rd7 {[%emt 0:00:29]} 35. Ra1 {[%emt 0:01:16]} Ne5 {[%emt 0:00:46]} 36. Rd1 {[%emt 0:01:20]} Bc6 {[%emt 0:00:31]} 37. Rd4 {[%emt 0:02:48]} f5 {[%emt 0:00:28]} 38. Rxd7 {[%emt 0:00:20]} Bxd7 {[%emt 0:00:29]} 39. Qd4 {[%emt 0:00:38]} Kf7 {[%emt 0:00:32]} 40. Nf1 {[%emt 0:00:58]} Ke7 {[%emt 0:00:18]} 41. Nd2 {[%emt 0:00:15]} Bc6 {[%emt 0:00:45]} 42. Bd1 {[%emt 0:00:16]} Qd5 {[%emt 0:00:29]} 43. Bb3 {[%emt 0:01:21]} Qxd4 {[%emt 0:00:26]} 44. exd4 {[%emt 0:00:03]} Nd3 {[%emt 0:00:25]} 45. d5 {[%emt 0:00:19]} Ba8 {[%emt 0:00:16]} 46. d6+ {[%emt 0:00:20]} Kf6 {[%emt 0:00:24]} 47. Bc2 {[%emt 0:01:33]} Ne5 {[%emt 0:00:49]} 48. Kf1 {[%emt 0:00:16]} Nc6 {[%emt 0:00:42]} 49. Nb3 {[%emt 0:00:04]} Bb7 {[%emt 0:00:19]} 50. Ke2 {[%emt 0:00:31]} Ke5 {[%emt 0:00:08]} 51. g3 {[%emt 0:00:40]} Bc8 {[%emt 0:00:19]} 52. h4 {[%emt 0:01:16]} h6 {[%emt 0:00:59]} 53. f3 {[%emt 0:00:28]} exf3+ {[%emt 0:00:05]} 54. Kxf3 {[%emt 0:00:06]} Be6 {[%emt 0:00:13]} 55. Ke3 {[%emt 0:00:11]} g5 {[%emt 0:00:17]} 56. hxg5 {[%emt 0:00:03]} hxg5 {[%emt 0:00:01]} 57. Bd1 {[%emt 0:00:49]} f4+ {[%emt 0:00:37]} 58. gxf4+ {[%emt 0:00:04]} gxf4+ {[%emt 0:00:04]} 59. Kf2 {[%emt 0:00:12]} Bd7 {[%emt 0:02:27]} 60. Bf3 {[%emt 0:00:16]} Nd8 {[%emt 0:00:34]} 61. Na5 {[%emt 0:00:16]} Be6 {[%emt 0:00:26]} 62. Nb7 {[%emt 0:00:40]} Nxb7 {[%emt 0:00:34]} 63. Bxb7 {[%emt 0:00:04]} Bd7 {[%emt 0:00:23]} 64. c6 {[%emt 0:00:09]} Bxc6 {[%emt 0:00:37]} 65. Bxc6 {[%emt 0:00:07]} Kxd6 {[%emt 0:00:11]} 66. Bb7 {[%emt 0:00:15]} a5 {[%emt 0:00:43]} 67. bxa5 {[%emt 0:00:09]} Kc5 {[%emt 0:00:23]} 68. Kf3 {[%emt 0:00:10]} Kd6 {[%emt 0:00:38]} 69. Kxf4 {[%emt 0:00:13]} Kc7 {[%emt 0:00:10]} 70. Ba6 {[%emt 0:00:32]} Kb8 {[%emt 0:00:15]} 71. Bxb5 {[%emt 0:00:08]} Ka7 {[%emt 0:00:21]} 72. Ke5 {[%emt 0:00:03]} Kb7 {[%emt 0:00:14]} 73. Kd6 {[%emt 0:00:04]} Ka7 {[%emt 0:00:28]} 74. Kc6 {[%emt 0:00:06]} Ka8 {[%emt 0:00:10]} 75. Kb6 {[%emt 0:00:03]} Kb8 {[%emt 0:00:15]} 76. a6 {[%emt 0:00:05]} 1-0

[Event "XVI Memorial Lezcano Montalvo 2024"]
[Site "Gran Canaria"]
[Date "2024.03.26"]
[Round "4.25"]
[White "Rossello Padron, Carlos"]
[Black "Pleschke, Julius Jonas"]
[Result "0-1"]
[ECO "A25"]
[WhiteElo "1792"]
[BlackElo "1993"]
[Annotator "RC"]
[PlyCount "90"]
[EventDate "2024.03.23"]
[EventType "swiss"]
[EventCountry "ESP"]
[SourceTitle "playchess.com"]
[Source "ChessBase"]
[SourceQuality "1"]
[TimeControl "5400+30"]

1. c4 {[%emt 0:00:14]} e5 {[%emt 0:00:38]} 2. Nc3 {[%emt 0:01:21]} Nc6 {[%emt 0:00:14]} 3. e3 {[%emt 0:01:36]} Nf6 {[%emt 0:02:05]} 4. Nge2 {[%emt 0:03:23]} d5 {[%emt 0:07:16]} 5. cxd5 {[%emt 0:02:23]} Nxd5 {[%emt 0:00:23]} 6. Nxd5 {[%emt 0:04:11]} Qxd5 {[%emt 0:00:06]} 7. Nc3 {[%emt 0:00:33]} Qd8 {[%emt 0:06:27]} 8. Bb5 {[%emt 0:02:53]} Bd7 {[%emt 0:05:41]} 9. O-O {[%emt 0:02:49]} Bd6 {[%emt 0:01:41]} 10. Ne4 {[%emt 0:02:21]} O-O {[%emt 0:02:10]} 11. Nxd6 {[%emt 0:02:27]} cxd6 {[%emt 0:00:02]} 12. b3 {[%emt 0:00:47]} d5 {[%emt 0:07:37]} 13. d4 {[%emt 0:04:05]} e4 {[%emt 0:01:08]} 14. Qh5 {[%emt 0:04:12]} f5 {[%emt 0:06:17]} 15. f3 {[%emt 0:01:39]} Be8 {[%emt 0:09:48]} 16. Qh3 {[%emt 0:00:39]} Nxd4 {[%emt 0:03:51]} 17. Bxe8 {[%emt 0:02:22]} Ne2+ {[%emt 0:00:17]} 18. Kf2 {[%emt 0:00:58]} Nxc1 {[%emt 0:00:19]} 19. Raxc1 {[%emt 0:00:57]} Qxe8 {[%emt 0:01:08]} 20. Kg1 {[%emt 0:01:46]} Rc8 {[%emt 0:06:41]} 21. Rcd1 {[%emt 0:03:40]} Qe5 {[%emt 0:12:56]} 22. f4 {[%emt 0:07:05]} Qe6 {[%emt 0:02:21]} 23. Rf2 {[%emt 0:00:22]} Rc3 {[%emt 0:02:38]} 24. Rfd2 {[%emt 0:01:50]} Qb6 {[%emt 0:00:25]} 25. Kf2 {[%emt 0:00:30]} Qa5 {[%emt 0:02:14]} 26. g4 {[%emt 0:00:58]} fxg4 {[%emt 0:01:00]} 27. Qxg4 {[%emt 0:00:13]} Qc5 {[%emt 0:00:19]} 28. Rd4 {[%emt 0:01:16]} Rc2+ {[%emt 0:00:43]} 29. R1d2 {[%emt 0:01:40]} Qxd4 {[%emt 0:04:15]} 30. Rxc2 {[%emt 0:00:34]} Qf6 {[%emt 0:04:46]} 31. Kg3 {[%emt 0:02:09]} Qb6 {[%emt 0:01:28]} 32. Re2 {[%emt 0:03:15]} Qc6 {[%emt 0:02:05]} 33. Rd2 {[%emt 0:00:31]} Rf6 {[%emt 0:01:25]} 34. Kf2 {[%emt 0:02:50]} h6 {[%emt 0:00:24]} 35. h4 {[%emt 0:01:21]} Kh7 {[%emt 0:01:45]} 36. Qh5 {[%emt 0:00:59]} Rd6 {[%emt 0:01:39]} 37. Qf5+ {[%emt 0:03:10]} Kg8 {[%emt 0:00:07]} 38. Qe5 {[%emt 0:00:48]} a6 {[%emt 0:01:44]} 39. h5 {[%emt 0:02:00]} Rd8 {[%emt 0:00:49]} 40. Qf5 {[%emt 0:03:11]} Qd7 {[%emt 0:00:42]} 41. Qg6 {[%emt 0:04:17]} Qf7 {[%emt 0:00:32]} 42. Qg4 {[%emt 0:00:34]} Qf6 {[%emt 0:00:25]} 43. Rc2 {[%emt 0:00:42]} d4 {[%emt 0:00:36]} 44. Rc8 {[%emt 0:00:31]} dxe3+ {[%emt 0:00:21]} 45. Kxe3 {[%emt 0:02:14]} Qd4+ {[%emt 0:03:32]} 0-1